bitfinex-derivatives/quotes_BTCF0:USTF0_20251219
["timestamp","ask_amount","ask_price","bid_price","bid_amount"]
[1766116541959,0.0172901,87088.0,87073.0,0.00032]
[1766116542252,0.0058,87088.0,87073.0,0.00032]
[1766116542853,0.1641801,87088.0,87072.0,0.00017217]
[1766116543054,0.0114904,87086.0,87072.0,0.00017217]
[1766116543750,0.15269,87088.0,87072.0,0.00017217]
[1766116544351,0.0058,87088.0,87073.0,0.011492]
[1766116544947,0.0058,87088.0,87075.0,0.0114916]
[1766116545242,0.0058,87088.0,87072.0,0.00017217]
[1766116545552,0.15269,87088.0,87072.0,0.00017217]
[1766116545960,0.011492,87074.0,87054.0,2.4245344]
[1766116546258,0.14689,87073.0,87057.0,0.0058]
[1766116546456,0.14689,87073.0,87059.0,0.0114939]
[1766116546755,0.14689,87073.0,87057.0,0.0058]
[1766116547953,0.14689,87069.0,87047.0,0.0058]
[1766116548254,0.1979997,87070.0,87047.0,0.0058]
[1766116548255,0.14689,87060.0,87047.0,0.0058]
[1766116548442,0.15269,87059.0,87047.0,0.0058]
[1766116548848,0.15269,87059.0,87043.0,0.05]
[1766116549057,0.15269,87059.0,87046.0,1.7e-07]
[1766116549556,0.1641839,87059.0,87046.0,1.7e-07]
[1766116549942,0.00013868,87058.0,87046.0,1.7e-07]
[1766116550151,0.14689,87057.0,87046.0,1.7e-07]
[1766116550350,0.0114946,87054.0,87037.0,0.0058]
[1766116550556,0.00013868,87058.0,87038.0,0.15674]
[1766116550742,0.00013868,87058.0,87037.0,0.0058]
[1766116550743,0.15269,87057.0,87037.0,0.0058]
[1766116550941,0.15269,87057.0,87037.0,0.0172967]
[1766116551357,0.15269,87057.0,87040.0,0.0114963]
[1766116551857,0.15269,87057.0,87037.0,0.0058]
[1766116552043,0.15269,87057.0,87036.0,0.0114968]
[1766116552244,0.14689,87051.0,87036.0,0.0058]
[1766116552559,0.14689,87045.0,87030.0,0.00288]
[1766116552749,0.15269,87044.0,87028.0,0.00288]
[1766116553154,0.15269,87044.0,87029.0,0.0114978]
[1766116553548,0.15269,87044.0,87032.0,0.0114974]
[1766116555158,0.15269,87044.0,87028.0,0.00288]
[1766116555454,0.14689,87042.0,87024.0,0.00352]
[1766116555658,0.14689,87040.0,87021.0,0.0058]
[1766116555855,0.14689,87038.0,87021.0,0.0058]
[1766116556462,0.0058,87039.0,87021.0,0.0058]
[1766116556463,0.1583869,87037.0,87021.0,0.0058]
[1766116556847,0.0058,87039.0,87021.0,0.0058]
[1766116557760,0.0058,87039.0,87022.0,0.0114987]
[1766116558250,0.15269,87039.0,87022.0,0.0114987]
[1766116558853,0.00013416,87041.0,87032.0,0.0114973]
[1766116558854,6e-08,87041.0,87032.0,0.0114973]
[1766116559069,6e-08,87041.0,87030.0,0.0058]
[1766116559756,0.14689,87039.0,87023.0,0.0058]
[1766116559957,0.14689,87039.0,87026.0,0.0114981]
[1766116560365,0.0058,87040.0,87023.0,0.0058]
[1766116560558,0.0114937,87061.0,87030.0,0.3547397]
[1766116560767,0.011494,87059.0,87038.0,0.0114965]
[1766116560957,0.0038,87058.0,87038.0,0.0114965]
[1766116561158,0.0038,87058.0,87024.0,0.15674]
[1766116561362,0.0114944,87055.0,87034.0,0.0114971]
[1766116561562,0.01166698,87053.0,87036.0,0.00017228]
[1766116561866,0.0058,87052.0,87036.0,2.28e-06]
[1766116562257,0.0114953,87049.0,87036.0,2.28e-06]
[1766116562457,0.1583853,87049.0,87036.0,2.28e-06]
[1766116562770,0.14689,87049.0,87036.0,2.28e-06]
[1766116563162,0.0114954,87048.0,87036.0,2.28e-06]
[1766116563360,0.15709,87046.0,87031.0,0.0114975]
[1766116563560,0.0058,87045.0,87027.0,0.00364]
[1766116563970,0.0058,87045.0,87037.0,0.0114968]
[1766116564769,0.0058,87045.0,87027.0,0.00364]
[1766116564959,0.0058,87045.0,87027.0,0.15361]
[1766116565962,0.15709,87045.0,87027.0,0.00364]
[1766116566260,0.0058,87048.0,87033.0,0.0114973]
[1766116568570,0.16289,87048.0,87033.0,0.0114973]
[1766116569668,0.16289,87048.0,87027.0,0.00364]
[1766116569868,0.15709,87046.0,87027.0,0.00364]
[1766116570268,0.15709,87046.0,87028.0,0.011498]
[1766116570469,0.1685857,87045.0,87027.0,0.00364]
[1766116570672,0.15709,87042.0,87027.0,0.00364]
[1766116570876,0.15709,87040.0,87028.0,0.0058]
[1766116571072,0.1685865,87040.0,87028.0,0.0058]
[1766116571275,0.15709,87040.0,87028.0,0.0058]
[1766116571876,0.1685865,87039.0,87028.0,0.0058]
[1766116572379,0.15709,87036.0,87022.0,0.0058]
[1766116572574,4.329e-05,87035.0,87023.0,0.0114986]
[1766116572776,4.329e-05,87035.0,87022.0,0.0058]
[1766116573274,4.329e-05,87035.0,87022.0,0.0172987]
[1766116574172,4.329e-05,87035.0,87025.0,0.0114983]
[1766116574372,3.29e-06,87035.0,87025.0,0.15228]
[1766116574574,3.29e-06,87035.0,87028.0,0.1637779]
[1766116574772,3.29e-06,87035.0,87028.0,0.15228]
[1766116574972,3.29e-06,87035.0,87029.0,0.0058]
[1766116575867,3.29e-06,87035.0,87028.0,0.0058]
[1766116576070,3.29e-06,87035.0,87026.0,0.0058]
[1766116576281,0.15691329,87035.0,87018.0,0.01379759]
[1766116576480,0.15708557,87035.0,87019.0,0.0058]
[1766116576873,0.15708557,87035.0,87020.0,0.011499]
[1766116577273,0.16288557,87035.0,87020.0,0.011499]
[1766116578082,0.0114974,87033.0,87019.0,0.0058]
[1766116578372,0.1684074,87033.0,87019.0,0.0058]
[1766116578572,0.15691,87025.0,87002.0,2.41494668]
[1766116578774,0.1684085,87024.0,87003.0,0.0058]
[1766116578979,0.15691,87021.0,87003.0,0.0058]
[1766116579177,0.1684094,87017.0,87003.0,0.0058]
[1766116579382,0.0114977,87031.0,86987.0,2.41484]
[1766116579383,0.00593218,87016.0,86987.0,2.41484]
[1766116579684,0.15691,87009.0,86992.0,0.0115027]
[1766116579884,0.00196,87008.0,86990.0,0.15228]
[1766116580181,0.00196,87008.0,86991.0,0.0115028]
[1766116580487,0.15887,87008.0,86991.0,0.0115028]
[1766116581374,0.15887,87008.0,86988.0,0.0173032]
[1766116581585,0.15887,87008.0,86988.0,0.0115032]
[1766116581884,0.0115018,86999.0,86989.0,0.0058]
[1766116582071,0.0115018,86999.0,86977.0,2.41492]
[1766116582072,0.16271,86999.0,86982.0,0.0173039]
[1766116582583,0.16271,86999.0,86986.0,0.0115034]
[1766116583090,0.0058,86999.0,86982.0,0.0058]
[1766116583579,0.0058,86999.0,86988.0,0.0115031]
[1766116584083,0.0058,86999.0,86985.0,0.0115036]
[1766116584771,0.0058,86999.0,86982.0,0.017304]
[1766116584979,0.1570446,86998.0,86977.0,2.41492]
[1766116585287,0.0115039,86983.0,86965.0,0.0115062]
[1766116585585,0.00597239,86983.0,86964.0,0.15808]
[1766116585976,0.00597239,86983.0,86965.0,0.15228]
[1766116586177,0.00597239,86983.0,86968.0,0.0115058]
[1766116586377,0.00597239,86983.0,86965.0,0.15228]
[1766116586583,0.00597239,86983.0,86964.0,0.0173063]
[1766116586779,0.00597239,86983.0,86967.0,0.011506]
[1766116587188,0.15699126,86982.0,86955.0,0.15241593]
[1766116587390,0.1684144,86979.0,86957.0,0.0115073]
[1766116587590,0.15691,86979.0,86956.0,0.0058]
[1766116587788,0.15691,86979.0,86965.0,0.0115062]
[1766116588084,0.0058,86981.0,86965.0,0.0115062]
[1766116588274,0.0058,86980.0,86965.0,0.0115062]
[1766116588790,8.126e-05,86982.0,86972.0,0.0115053]
[1766116588791,0.00588126,86982.0,86972.0,0.0115053]
[1766116589676,0.00588126,86982.0,86964.0,0.15808]
[1766116589984,0.00588126,86982.0,86955.0,0.00013593]
[1766116589985,0.15691,86981.0,86958.0,0.0058]
[1766116590192,0.15691,86979.0,86958.0,0.0173071]
[1766116590383,0.0115049,86976.0,86958.0,0.0058]
[1766116590584,0.00588126,86982.0,86958.0,0.0058]
[1766116590585,0.1684159,86969.0,86958.0,0.0058]
[1766116590891,0.0058,86968.0,86955.0,0.00013593]
[1766116591785,8.126e-05,86982.0,86967.0,0.0115059]
[1766116592086,0.0058,86981.0,86962.0,0.15228]
[1766116592280,0.15691,86978.0,86955.0,0.01164343]
[1766116592585,0.15691,86969.0,86948.0,0.0115085]
[1766116592777,0.0173059,86968.0,86947.0,0.15612]
[1766116592978,0.00017249,86966.0,86947.0,0.15612]
[1766116593987,0.00017249,86966.0,86951.0,0.163788]
[1766116594391,0.00329249,86966.0,86954.0,0.0115077]
[1766116594586,0.00329249,86966.0,86954.0,0.1637877]
[1766116594587,0.00017249,86966.0,86954.0,0.1637877]
[1766116594791,0.00017249,86966.0,86954.0,0.1695877]
[1766116594987,0.00017249,86966.0,86938.0,0.0023005]
[1766116594988,0.15708249,86966.0,86938.0,0.0023005]
[1766116595193,0.15691,86959.0,86938.0,0.0023005]
[1766116595494,0.15691,86957.0,86938.0,0.0023005]
[1766116595788,0.16271,86956.0,86938.0,0.0023005]
[1766116596089,0.15691,86928.0,86896.0,0.15228]
[1766116596298,0.15691,86922.0,86899.0,0.0058]
[1766116596484,0.15691,86920.0,86899.0,0.0058]
[1766116596682,0.1684225,86918.0,86899.0,0.0058]
[1766116596884,0.0115132,86914.0,86899.0,0.0058]
[1766116597087,0.1742232,86914.0,86899.0,0.0058]
[1766116597390,0.00014878,86913.0,86892.0,0.004]
[1766116597598,0.0115141,86906.0,86898.0,6e-08]
[1766116598093,0.0058,86907.0,86898.0,6e-08]
[1766116598286,0.00017259,86911.0,86898.0,6e-08]
[1766116598889,0.00017259,86911.0,86899.0,0.0058]
[1766116599095,0.0115136,86910.0,86898.0,6e-08]
[1766116599295,0.0115139,86908.0,86898.0,6e-08]
[1766116599496,0.1684239,86908.0,86898.0,6e-08]
[1766116599696,0.0115145,86903.0,86898.0,6e-08]
[1766116599887,0.00017259,86911.0,86886.0,0.0058]
[1766116599888,0.16271,86902.0,86886.0,0.0058]
[1766116600089,0.00017259,86911.0,86887.0,0.15228]
[1766116600298,0.0058,86910.0,86887.0,0.15228]
[1766116602202,0.0173136,86910.0,86887.0,0.15228]
[1766116602399,0.0115142,86906.0,86886.0,0.0058]
[1766116602594,0.15691,86906.0,86879.0,0.15228]
[1766116602803,0.15691,86906.0,86833.0,0.04031183]
[1766116602804,0.0115182,86876.0,86847.0,0.0115218]
[1766116603094,0.14817,86875.0,86844.0,0.14084]
[1766116603302,0.0115198,86864.0,86844.0,0.14084]
[1766116603487,0.01152,86862.0,86843.0,0.00584]
[1766116603689,0.00584,86863.0,86843.0,0.00584]
[1766116603899,0.00011598,86862.0,86843.0,0.14668]
[1766116604104,0.00584,86863.0,86843.0,0.14668]
[1766116604388,0.00584,86865.0,86843.0,0.14668]
[1766116605097,8.665e-05,86864.0,86843.0,0.14668]
[1766116605402,8.665e-05,86864.0,86843.0,0.00584]
[1766116605403,0.0115205,86858.0,86843.0,0.00584]
[1766116605601,0.00584,86857.0,86843.0,0.00584]
[1766116605899,0.00584,86857.0,86838.0,0.00584]
[1766116606093,0.00017269,86859.0,86835.0,0.14084]
[1766116606292,0.0173605,86858.0,86836.0,0.00584]
[1766116606799,0.0115216,86850.0,86836.0,0.00584]
[1766116606989,0.00584,86849.0,86836.0,0.00584]
[1766116607194,0.00584,86849.0,86830.0,0.00584]
[1766116607195,0.0115224,86844.0,86830.0,0.00584]
[1766116607499,0.0115225,86844.0,86830.0,0.00584]
[1766116607889,0.14233,86842.0,86818.0,0.00230368]
[1766116608090,0.00014122,86848.0,86803.0,2.42972876]
[1766116608091,0.14233,86829.0,86803.0,0.01148876]
[1766116608288,0.00584,86836.0,86810.0,0.14084]
[1766116608489,0.14817,86836.0,86811.0,0.00584]
[1766116608697,0.0115253,86822.0,86811.0,0.00584]
[1766116608902,0.09280587,86831.0,86806.0,0.00584]
[1766116609117,0.09280587,86831.0,86817.0,0.0115259]
[1766116609295,0.29075771,86860.0,86818.0,0.00192]
[1766116609296,0.00584,86840.0,86818.0,0.00192]
[1766116609600,0.14233,86853.0,86819.0,0.00584]
[1766116609897,0.14233,86850.0,86825.0,0.0115247]
[1766116610101,0.0115224,86844.0,86826.0,0.00192]
[1766116610297,0.00584,86845.0,86809.0,0.0115269]
[1766116610497,0.00584,86845.0,86789.0,0.063424]
[1766116610498,0.0115241,86831.0,86810.0,0.00264]
[1766116610693,0.00010667,86830.0,86810.0,0.00264]
[1766116610898,0.00010667,86830.0,86790.0,0.46386323]
[1766116610899,0.0115255,86821.0,86797.0,0.14084]
[1766116611100,0.0115255,86821.0,86798.0,0.00584]
[1766116611300,0.011526,86817.0,86798.0,0.00584]
[1766116611504,0.1425028,86818.0,86798.0,0.00584]
[1766116611704,0.1538576,86805.0,86777.0,0.1523712]
[1766116611888,0.1538576,86805.0,86742.0,13.704]
[1766116611889,0.0001728,86800.0,86767.0,0.14084]
[1766116612207,0.0001728,86800.0,86752.0,0.01356418]
[1766116612208,0.14233,86766.0,86752.0,0.01356418]
[1766116612402,0.14233,86779.0,86748.0,0.00584]
[1766116612702,0.0115289,86795.0,86766.0,0.1523726]
[1766116612997,0.0115273,86807.0,86767.0,0.1428]
[1766116613198,0.0115235,86835.0,86786.0,0.15237]
[1766116613199,0.00011359,86806.0,86786.0,0.15237]
[1766116613394,0.0115255,86821.0,86792.0,0.0115291]
[1766116613593,0.00017279,86815.0,86798.0,0.00017279]
[1766116613790,0.00017279,86815.0,86799.0,0.00584]
[1766116614403,0.00013354,86814.0,86799.0,0.00584]
[1766116614700,0.00013354,86814.0,86798.0,0.00017279]
[1766116614701,0.0115272,86808.0,86798.0,9e-08]
[1766116615005,0.00013354,86814.0,86788.0,0.14084]
[1766116615006,0.0115282,86800.0,86788.0,0.00584]
[1766116615207,0.0115275,86805.0,86789.0,0.00288]
[1766116615593,0.0115278,86803.0,86789.0,0.00288]
[1766116615902,0.00576,86811.0,86789.0,0.00288]
[1766116615903,0.0115278,86804.0,86789.0,0.00288]
[1766116616091,0.0115278,86804.0,86775.0,0.14084]
[1766116616298,0.0115278,86804.0,86704.0,0.04031183]
[1766116616299,0.14233,86778.0,86741.0,0.152376]
[1766116616501,0.01170529,86768.0,86742.0,0.00584]
[1766116616797,0.00595771,86777.0,86753.0,0.14084]
[1766116616798,0.00011771,86777.0,86753.0,0.14084]
[1766116616997,0.00011771,86777.0,86759.0,0.1523736]
[1766116617198,0.0125293,86792.0,86759.0,0.1523736]
[1766116617406,0.14233,86800.0,86757.0,2.41996]
[1766116617407,0.0042,86794.0,86767.0,0.0115325]
[1766116617595,0.0115292,86793.0,86770.0,0.14084]
[1766116617790,0.00017289,86790.0,86773.0,0.00017289]
[1766116618107,9.304e-05,86789.0,86773.0,0.00017289]
[1766116619195,9.304e-05,86789.0,86773.0,9e-08]
[1766116619408,9.304e-05,86789.0,86774.0,0.00312]
[1766116619409,0.0115298,86788.0,86774.0,0.00312]
[1766116619603,9.304e-05,86789.0,86740.0,0.3024149]
[1766116619604,0.0115327,86766.0,86752.0,0.00156]
[1766116619796,0.00012773,86765.0,86753.0,0.00156]
[1766116619993,0.011533,86764.0,86753.0,0.00156]
[1766116620491,0.14233,86764.0,86740.0,0.00012109]
[1766116620692,0.00017289,86761.0,86744.0,0.00584]
[1766116620897,0.0115342,86755.0,86744.0,0.00017289]
[1766116621101,0.0115342,86755.0,86731.0,0.0008]
[1766116621302,0.0115342,86755.0,86739.0,0.00128]
[1766116621508,0.00012773,86765.0,86739.0,0.14212]
[1766116621801,0.00099999,86800.0,86739.0,0.14212]
[1766116621802,0.0115294,86791.0,86755.0,0.14084]
[1766116622002,0.00136,86792.0,86763.0,0.0115331]
[1766116622310,0.00017289,86786.0,86765.0,0.14084]
[1766116622495,0.00017289,86786.0,86766.0,0.0115326]
[1766116622809,0.0115286,86797.0,86765.0,0.14084]
[1766116622810,0.00052,86797.0,86765.0,0.14084]
[1766116623011,0.0115288,86796.0,86765.0,0.1523728]
[1766116623199,0.0115252,86823.0,86764.0,0.00584]
[1766116623200,0.0115265,86813.0,86780.0,0.0115308]
[1766116623400,0.0115265,86813.0,86781.0,0.00584]
[1766116623602,0.00384,86812.0,86781.0,0.00584]
[1766116623811,0.0115279,86803.0,86788.0,0.00017279]
[1766116623998,0.0115277,86804.0,86788.0,9e-08]
[1766116624499,0.00017279,86805.0,86788.0,9e-08]
[1766116625202,0.00017279,86805.0,86788.0,0.01152979]
[1766116625414,0.00017279,86805.0,86788.0,0.15797979]
[1766116625911,0.00017279,86805.0,86788.0,0.14645009]
[1766116626400,0.00017279,86805.0,86788.0,9e-08]
[1766116627807,0.14372,86829.0,86788.0,0.14645009]
[1766116628009,0.14372,86829.0,86800.0,0.29075771]
[1766116628312,0.14372,86829.0,86779.0,0.0115309]
[1766116628313,0.0115245,86828.0,86801.0,0.163818]
[1766116628811,0.00017279,86823.0,86806.0,0.00017279]
[1766116629415,2.79e-06,86823.0,86806.0,0.00017279]
[1766116629605,2.79e-06,86823.0,86812.0,0.0115265]
[1766116629810,2.79e-06,86823.0,86813.0,0.00584]
[1766116630514,0.0115218,86849.0,86821.0,0.0115253]
[1766116630704,0.01152,86862.0,86836.0,0.0115233]
[1766116630899,0.0115205,86859.0,86837.0,0.00384]
[1766116631316,0.0115199,86863.0,86838.0,0.0115231]
[1766116631510,0.00017279,86857.0,86839.0,0.00017279]
[1766116631913,0.0115178,86879.0,86854.0,0.0115209]
[1766116632112,0.14372,86891.0,86862.0,0.0115198]
[1766116632314,0.14372,86891.0,86860.0,0.19925414]
[1766116632315,0.0115168,86887.0,86863.0,0.00384]
[1766116632612,0.14372,86886.0,86863.0,0.00384]
[1766116632809,0.1552368,86886.0,86863.0,0.00384]
[1766116633006,0.00584,86894.0,86866.0,0.00017268]
[1766116633007,0.00017268,86883.0,86866.0,0.00017268]
[1766116633414,0.00017268,86883.0,86867.0,0.00584]
[1766116633614,0.00017268,86883.0,86868.0,0.0115191]
[1766116633912,2.68e-06,86883.0,86874.0,0.0115182]
[1766116634126,0.0115142,86906.0,86876.0,0.13896]
[1766116634421,0.14947,86905.0,86877.0,0.00584]
[1766116634716,0.14947,86905.0,86846.0,0.0115219]
[1766116634717,0.0115161,86891.0,86878.0,0.00584]
[1766116635015,0.0115155,86896.0,86879.0,0.00584]
[1766116635319,0.00017268,86893.0,86876.0,0.00017268]
[1766116636115,0.0115164,86889.0,86876.0,0.00017268]
[1766116636320,0.14947,86889.0,86871.0,0.00076]
[1766116636518,0.14947,86884.0,86855.0,2.42064]
[1766116636827,0.14947,86879.0,86856.0,0.00584]
[1766116637204,0.0115198,86863.0,86859.0,0.00017268]
[1766116637408,0.00584,86872.0,86852.0,0.00584]
[1766116637605,0.00017268,86876.0,86853.0,0.0115211]
[1766116637919,2.68e-06,86876.0,86863.0,0.13896]
[1766116638118,2.68e-06,86876.0,86864.0,0.00584]
[1766116638316,2.68e-06,86876.0,86868.0,0.011519]
[1766116639122,2.68e-06,86876.0,86864.0,0.00584]
[1766116639718,2.68e-06,86876.0,86865.0,0.0115195]
[1766116640025,2.68e-06,86876.0,86864.0,0.00584]
[1766116640517,0.0115188,86871.0,86864.0,1e-07]
[1766116640718,2.68e-06,86876.0,86859.0,0.00584]
[1766116640719,0.0115194,86867.0,86859.0,0.00584]
[1766116641025,0.0115194,86867.0,86857.0,0.00584]
[1766116641523,2.68e-06,86876.0,86838.0,2.4202]
[1766116641524,0.0115206,86858.0,86838.0,2.4202]
[1766116641723,0.0115206,86858.0,86828.0,0.13896]
[1766116641724,0.00017268,86857.0,86839.0,0.01753558]
[1766116642518,8e-08,86857.0,86839.0,0.00601268]
[1766116642712,0.0115176,86880.0,86859.0,0.0115202]
[1766116642913,0.0115165,86889.0,86860.0,0.1448]
[1766116643113,0.0115165,86889.0,86862.0,0.13896]
[1766116643318,0.00388,86894.0,86863.0,0.00584]
[1766116643522,0.0115176,86880.0,86863.0,0.00584]
[1766116643709,0.19925414,86880.0,86870.0,2.68e-06]
[1766116643909,0.0115186,86873.0,86870.0,2.68e-06]
[1766116644522,0.0115197,86865.0,86856.0,0.00104]
[1766116644820,0.0115201,86861.0,86842.0,0.13896]
[1766116645023,0.0115205,86858.0,86843.0,0.00584]
[1766116645413,0.00017268,86859.0,86843.0,0.00584]
[1766116646021,0.00017268,86859.0,86843.0,0.1448]
[1766116646323,0.00017268,86859.0,86844.0,0.0115223]
[1766116646623,0.00017268,86859.0,86843.0,0.00584]
[1766116646814,0.00017268,86859.0,86847.0,0.0115219]
[1766116647015,0.14947,86881.0,86846.0,0.13896]
[1766116647217,0.14947,86890.0,86854.0,0.13896]
[1766116647421,0.15531,86890.0,86864.0,0.0115196]
[1766116647721,0.35456414,86890.0,86865.0,0.00584]
[1766116647926,0.0115184,86874.0,86869.0,8e-08]
[1766116648227,0.0115193,86868.0,86847.0,0.0115219]
[1766116648412,0.35260414,86870.0,86834.0,0.13896]
[1766116648616,0.35260414,86870.0,86797.0,0.057643]
[1766116648617,0.34872414,86844.0,86809.0,0.0115269]
[1766116648822,0.0115244,86829.0,86811.0,0.0115266]
[1766116649020,0.01169708,86829.0,86811.0,0.01169928]
[1766116649423,0.00017268,86829.0,86811.0,0.00017268]
[1766116650226,0.0115249,86825.0,86811.0,0.00017268]
[1766116650527,0.00017268,86829.0,86811.0,0.00017268]
[1766116650528,0.0115251,86824.0,86811.0,0.00017268]
[1766116650918,0.00017268,86829.0,86811.0,0.00017268]
[1766116651321,0.00017268,86829.0,86811.0,8e-08]
[1766116651322,0.0115264,86814.0,86811.0,8e-08]
[1766116651522,0.0115269,86810.0,86805.0,8e-08]
[1766116651728,0.0115264,86814.0,86805.0,8e-08]
[1766116652425,9.031e-05,86813.0,86805.0,8e-08]
[1766116653327,0.0115253,86822.0,86805.0,8e-08]
[1766116653531,0.0115257,86819.0,86805.0,8e-08]
[1766116654029,0.0115252,86823.0,86805.0,8e-08]
[1766116654219,0.0115255,86821.0,86805.0,8e-08]
[1766116654419,0.0115258,86818.0,86805.0,8e-08]
[1766116654619,0.0115262,86815.0,86805.0,8e-08]
[1766116654827,0.0115258,86819.0,86805.0,8e-08]
[1766116655325,0.1609966,86812.0,86796.0,0.00312]
[1766116655530,0.19925414,86810.0,86796.0,0.00312]
[1766116655732,0.011527,86809.0,86796.0,0.00312]
[1766116656118,0.19925414,86810.0,86796.0,0.00312]
[1766116656322,0.0115267,86811.0,86796.0,0.00312]
[1766116656520,0.0115271,86808.0,86796.0,0.00312]
[1766116656716,0.0115274,86806.0,86786.0,0.01153]
[1766116657020,0.0115274,86806.0,86787.0,0.00584]
[1766116657222,0.36025104,86810.0,86788.0,0.0115296]
[1766116657624,0.00584,86809.0,86787.0,0.1448]
[1766116657827,0.01169939,86812.0,86792.0,0.0115292]
[1766116658024,0.00204,86810.0,86796.0,0.0115286]
[1766116658222,0.00204,86810.0,86792.0,0.0115291]
[1766116658630,0.013567,86810.0,86787.0,0.1448]
[1766116659331,0.013567,86810.0,86787.0,0.00584]
[1766116659332,0.14947,86809.0,86787.0,0.00584]
[1766116659634,0.1609971,86809.0,86788.0,0.0115298]
[1766116659829,0.0115277,86804.0,86787.0,0.00584]
[1766116660029,4.539e-05,86803.0,86787.0,0.00584]
[1766116660726,0.19925414,86800.0,86787.0,0.00584]
[1766116660929,0.19925414,86800.0,86784.0,0.00584]
[1766116661128,0.00584,86802.0,86784.0,0.00584]
[1766116661640,4.539e-05,86803.0,86784.0,0.00584]
[1766116661831,0.14947,86820.0,86784.0,0.1448]
[1766116662032,0.0028,86811.0,86787.0,0.13896]
[1766116662226,0.0115273,86807.0,86788.0,0.0115297]
[1766116662528,0.19925414,86810.0,86788.0,0.0115297]
[1766116662727,0.19925414,86810.0,86787.0,0.12396]
[1766116662728,0.0115274,86806.0,86784.0,0.0173702]
[1766116663123,0.14587,86811.0,86759.0,0.0115335]
[1766116663124,0.14307,86799.0,86759.0,0.0115335]
[1766116663325,0.00017279,86788.0,86761.0,2.42696]
[1766116663726,9e-08,86788.0,86782.0,5e-07]
[1766116663927,9e-08,86788.0,86783.0,0.0115304]
[1766116664144,9e-08,86788.0,86785.0,0.0115301]
[1766116664536,0.14307,86822.0,86801.0,0.0115279]
[1766116664729,0.14307,86816.0,86797.0,0.0115284]
[1766116665230,0.14307,86814.0,86793.0,0.017369]
[1766116665431,0.14307,86807.0,86785.0,0.00584]
[1766116665630,0.14307,86805.0,86782.0,5e-07]
[1766116665941,0.14307,86802.0,86782.0,5e-07]
[1766116666335,0.0115281,86801.0,86782.0,5e-07]
[1766116666535,0.14307,86802.0,86782.0,5e-07]
[1766116667336,0.00584,86806.0,86788.0,0.0115298]
[1766116667638,0.00017279,86812.0,86782.0,5e-07]
[1766116667832,0.00017279,86812.0,86784.0,0.1548203]
[1766116668231,0.00392,86811.0,86784.0,0.1548203]
[1766116668633,0.34232414,86810.0,86783.0,0.0052]
[1766116668839,0.0115289,86795.0,86782.0,5e-07]
[1766116669048,0.0115289,86795.0,86783.0,0.00508]
[1766116669236,0.00584,86802.0,86760.0,0.00014107]
[1766116669237,0.0115306,86782.0,86760.0,0.00014107]
[1766116669431,0.00017279,86780.0,86762.0,0.00584]
[1766116670440,0.00017279,86780.0,86762.0,0.0173731]
[1766116670638,0.00017279,86780.0,86766.0,0.0115327]
[1766116670832,0.14307,86803.0,86774.0,0.14329]
[1766116671048,0.0115273,86807.0,86783.0,0.0115303]
[1766116671049,0.00584,86802.0,86783.0,0.0115303]
[1766116671238,0.00584,86802.0,86783.0,0.00584]
[1766116671440,0.00584,86802.0,86785.0,0.01153]
[1766116671835,0.00601279,86802.0,86785.0,0.01170279]
[1766116672238,0.01754079,86802.0,86785.0,0.00017279]
[1766116673546,0.0115292,86793.0,86767.0,0.14329]
[1766116673751,0.1545997,86789.0,86768.0,0.00584]
[1766116674049,0.1545997,86789.0,86765.0,0.0115328]
[1766116674050,0.0115301,86786.0,86769.0,0.00584]
[1766116674349,0.14307,86789.0,86769.0,0.00584]
[1766116674545,0.14307,86789.0,86773.0,0.0115317]
[1766116674946,0.00584,86794.0,86780.0,0.0115308]
[1766116675145,0.1545982,86800.0,86781.0,0.00584]
[1766116675146,0.00584,86800.0,86781.0,0.00584]
[1766116676254,0.0115287,86796.0,86781.0,0.00584]
[1766116676667,0.00584,86800.0,86782.0,0.0115304]
[1766116677360,0.00584,86800.0,86781.0,0.00584]
[1766116677562,0.19925414,86800.0,86781.0,0.00584]
[1766116677758,0.20509414,86800.0,86781.0,0.00584]
[1766116677959,0.0115287,86797.0,86781.0,0.00584]
[1766116678158,0.14307,86799.0,86774.0,0.00584]
[1766116678355,0.14307,86790.0,86760.0,0.00014107]
[1766116678561,0.00017279,86784.0,86760.0,0.00014107]
[1766116678864,0.00017279,86784.0,86766.0,0.0115326]
[1766116679164,0.00017279,86784.0,86761.0,0.00584]
[1766116679364,0.011531,86779.0,86761.0,0.00584]
[1766116679568,0.0115317,86774.0,86761.0,0.00584]
[1766116679770,0.00017279,86784.0,86752.0,0.0115344]
[1766116679771,0.1546021,86771.0,86752.0,0.0115344]
[1766116679969,0.00017289,86770.0,86753.0,0.00584]
[1766116680469,0.00017289,86770.0,86759.0,0.0115335]
[1766116680766,0.0115299,86788.0,86768.0,0.0115324]
[1766116680974,0.0115299,86788.0,86750.0,0.19925414]
[1766116680975,0.06094061,86792.0,86765.0,0.1548227]
[1766116681272,0.00584,86795.0,86764.0,2.4334129]
[1766116681458,0.08189493,86809.0,86772.0,0.0115318]
[1766116681459,0.0115295,86791.0,86772.0,0.0115318]
[1766116681866,0.00017289,86790.0,86773.0,0.00017289]
[1766116682571,0.00017289,86790.0,86774.0,0.00276]
[1766116682772,0.00017289,86790.0,86775.0,0.0115314]
[1766116682955,0.00017289,86790.0,86778.0,0.0115311]
[1766116683160,0.00017289,86790.0,86774.0,0.00276]
[1766116683566,1e-08,86801.0,86798.0,0.0115283]
[1766116683763,0.13876,86802.0,86765.0,0.14414]
[1766116684069,0.00584,86803.0,86776.0,0.14414]
[1766116684280,0.00196,86809.0,86793.0,0.011529]
[1766116684571,0.00017279,86810.0,86792.0,0.00589279]
[1766116684762,0.00017279,86810.0,86795.0,0.0115288]
[1766116685159,0.00017279,86810.0,86792.0,0.00589279]
[1766116685160,0.00017279,86810.0,86798.0,0.0115284]
[1766116685365,0.00017279,86810.0,86801.0,0.011528]
[1766116685566,0.00017279,86810.0,86799.0,0.00584]
[1766116686362,0.33818693,86810.0,86792.0,0.00017279]
[1766116686565,0.19925414,86802.0,86779.0,0.0115309]
[1766116686868,0.0115292,86792.0,86771.0,0.011532]
[1766116687065,0.0115292,86792.0,86756.0,0.06336447]
[1766116687066,0.0115293,86792.0,86773.0,0.0115317]
[1766116687376,0.13876,86795.0,86773.0,0.0115317]
[1766116687572,0.00017279,86793.0,86776.0,0.0115313]
[1766116688569,0.00017279,86793.0,86779.0,0.0115309]
[1766116688967,0.13876,86805.0,86780.0,0.00584]